[Event "Late-Titled-Tuesday-Blitz-November-28-2023"]
[Site "Chess.com"]
[Date "2023.11.28"]
[Round "4"]
[White "Mikhal867"]
[Black "lluiss"]
[Result "0-1"]
[WhiteElo "2415"]
[BlackElo "2202"]
[TimeControl "180+1"]
[EndTime "14:35:58 PST"]
[Termination "lluiss won by resignation"]

1. d4 {[%clk 0:03:00.9]} 1... Nf6 {[%clk 0:02:58.9]} 2. c4 {[%clk 0:02:59.5]}
2... g6 {[%clk 0:02:59.2]} 3. f3 {[%clk 0:02:58.8]} 3... d5 {[%clk 0:02:58.6]}
4. cxd5 {[%clk 0:02:58.4]} 4... Nxd5 {[%clk 0:02:59.5]} 5. e4 {[%clk 0:02:58.6]}
5... Nb6 {[%clk 0:02:59.5]} 6. Be3 {[%clk 0:02:58.5]} 6... Bg7 {[%clk
0:02:59.6]} 7. Nc3 {[%clk 0:02:58.3]} 7... O-O {[%clk 0:03:00.1]} 8. Qd2 {[%clk
0:02:55.3]} 8... Nc6 {[%clk 0:03:00.6]} 9. d5 {[%clk 0:02:54]} 9... Ne5 {[%clk
0:02:58.3]} 10. b3 {[%clk 0:02:51.2]} 10... e6 {[%clk 0:02:50.8]} 11. f4 {[%clk
0:02:29.3]} 11... Ng4 {[%clk 0:02:47.6]} 12. Bd4 {[%clk 0:02:22.3]} 12... e5
{[%clk 0:02:32.2]} 13. Bc5 {[%clk 0:01:58]} 13... exf4 {[%clk 0:02:10]} 14. Bxf8
{[%clk 0:01:55.9]} 14... Qh4+ {[%clk 0:02:10.1]} 15. g3 {[%clk 0:01:50.4]} 15...
fxg3 {[%clk 0:02:10]} 16. O-O-O {[%clk 0:01:38.4]} 16... Kxf8 {[%clk 0:01:57.4]}
17. Nf3 {[%clk 0:01:37.9]} 17... Qh5 {[%clk 0:01:51.3]} 18. Kb1 {[%clk
0:01:23.4]} 18... Nf2 {[%clk 0:01:49.1]} 19. hxg3 {[%clk 0:01:08.5]} 19... Qxf3
{[%clk 0:01:32.2]} 20. Rxh7 {[%clk 0:00:56.5]} 20... Nxd1 {[%clk 0:00:59.6]} 21.
Nxd1 {[%clk 0:00:46.3]} 21... Qxe4+ {[%clk 0:00:54.9]} 22. Bd3 {[%clk
0:00:43.9]} 22... Qxd5 {[%clk 0:00:54.9]} 23. Nc3 {[%clk 0:00:37.8]} 23... Qe5
{[%clk 0:00:50.8]} 24. Rxg7 {[%clk 0:00:35]} 24... Kxg7 {[%clk 0:00:47.7]} 25.
Bc2 {[%clk 0:00:28.5]} 25... Bf5 {[%clk 0:00:46.8]} 26. g4 {[%clk 0:00:25.7]}
26... Bxc2+ {[%clk 0:00:45.9]} 27. Qxc2 {[%clk 0:00:25.9]} 27... Rd8 {[%clk
0:00:44.7]} 0-1

[Event "Late-Titled-Tuesday-Blitz-November-28-2023"]
[Site "Chess.com"]
[Date "2023.11.28"]
[Round "4"]
[White "WilliamAlfaroCaracas"]
[Black "katharinareinecke"]
[Result "0-1"]
[WhiteElo "2201"]
[BlackElo "2009"]
[TimeControl "180+1"]
[EndTime "14:36:04 PST"]
[Termination "katharinareinecke won on time"]

1. e4 {[%clk 0:02:56.2]} 1... c6 {[%clk 0:02:59.9]} 2. d4 {[%clk 0:02:55.5]}
2... d5 {[%clk 0:02:59.9]} 3. exd5 {[%clk 0:02:55.9]} 3... cxd5 {[%clk
0:02:59.6]} 4. c4 {[%clk 0:02:56.8]} 4... Nf6 {[%clk 0:02:58.4]} 5. Nc3 {[%clk
0:02:57]} 5... e6 {[%clk 0:02:58.1]} 6. Nf3 {[%clk 0:02:55.6]} 6... Nc6 {[%clk
0:02:57]} 7. c5 {[%clk 0:02:54.9]} 7... Be7 {[%clk 0:02:55.1]} 8. Qc2 {[%clk
0:02:52.5]} 8... O-O {[%clk 0:02:54.6]} 9. Bb5 {[%clk 0:02:47.4]} 9... a6 {[%clk
0:02:48.5]} 10. Bxc6 {[%clk 0:02:46.8]} 10... bxc6 {[%clk 0:02:48.4]} 11. Ne5
{[%clk 0:02:39.9]} 11... Bb7 {[%clk 0:02:45.1]} 12. O-O {[%clk 0:02:32.3]} 12...
Nd7 {[%clk 0:02:42.8]} 13. f4 {[%clk 0:02:13.9]} 13... a5 {[%clk 0:02:23.6]} 14.
f5 {[%clk 0:01:38.8]} 14... Nxe5 {[%clk 0:02:22.2]} 15. dxe5 {[%clk 0:01:37.6]}
15... Bxc5+ {[%clk 0:02:21.8]} 16. Kh1 {[%clk 0:01:36]} 16... Ba6 {[%clk
0:02:17.6]} 17. Rf3 {[%clk 0:01:19.4]} 17... Bd4 {[%clk 0:02:12.5]} 18. Bf4
{[%clk 0:00:37]} 18... exf5 {[%clk 0:02:06.8]} 19. Qxf5 {[%clk 0:00:34]} 19...
g6 {[%clk 0:02:04.5]} 20. Qg4 {[%clk 0:00:28.4]} 20... f5 {[%clk 0:01:58.4]} 21.
Qg3 {[%clk 0:00:19]} 21... Qe7 {[%clk 0:01:46]} 22. Re1 {[%clk 0:00:16.8]} 22...
Rab8 {[%clk 0:01:43.9]} 23. Bg5 {[%clk 0:00:15.8]} 23... Qe6 {[%clk 0:01:40.3]}
24. Bf6 {[%clk 0:00:15.6]} 24... Rxb2 {[%clk 0:01:35.4]} 25. Qh4 {[%clk
0:00:10.3]} 25... Rf7 {[%clk 0:01:22.1]} 26. Qxd4 {[%clk 0:00:05.7]} 26... Rxf6
{[%clk 0:01:19.4]} 27. Nxd5 {[%clk 0:00:03.3]} 27... cxd5 {[%clk 0:01:08.3]} 28.
Qxb2 {[%clk 0:00:03.1]} 28... Rf8 {[%clk 0:01:07.1]} 29. Rc1 {[%clk 0:00:01.7]}
29... Bc4 {[%clk 0:01:07]} 30. Qb6 {[%clk 0:00:01.7]} 30... Qxb6 {[%clk
0:01:06.7]} 0-1

[Event "Late-Titled-Tuesday-Blitz-November-28-2023"]
[Site "Chess.com"]
[Date "2023.11.28"]
[Round "4"]
[White "chrisclaireredfield"]
[Black "Jospem"]
[Result "0-1"]
[WhiteElo "2575"]
[BlackElo "3050"]
[TimeControl "180+1"]
[EndTime "14:36:06 PST"]
[Termination "Jospem won by resignation"]

1. Nf3 {[%clk 0:03:00.9]} 1... c5 {[%clk 0:02:59.7]} 2. g3 {[%clk 0:03:00.3]}
2... Nc6 {[%clk 0:02:57.6]} 3. c4 {[%clk 0:03:00.1]} 3... g6 {[%clk 0:02:56]} 4.
Bg2 {[%clk 0:02:59.1]} 4... Bg7 {[%clk 0:02:51.4]} 5. O-O {[%clk 0:02:58.8]}
5... d6 {[%clk 0:02:50.9]} 6. Nc3 {[%clk 0:02:56.8]} 6... e6 {[%clk 0:02:51.2]}
7. a3 {[%clk 0:02:55.3]} 7... Nge7 {[%clk 0:02:51.7]} 8. Rb1 {[%clk 0:02:55.6]}
8... O-O {[%clk 0:02:52.4]} 9. b4 {[%clk 0:02:55.3]} 9... Rb8 {[%clk 0:02:53]}
10. Qb3 {[%clk 0:02:44.7]} 10... b6 {[%clk 0:02:51.5]} 11. d3 {[%clk 0:02:43.5]}
11... Bb7 {[%clk 0:02:50.9]} 12. Bg5 {[%clk 0:02:40.5]} 12... h6 {[%clk
0:02:48.3]} 13. Bd2 {[%clk 0:02:40.2]} 13... Nd4 {[%clk 0:02:43.5]} 14. Nxd4
{[%clk 0:02:39.1]} 14... cxd4 {[%clk 0:02:44.4]} 15. Na2 {[%clk 0:02:27]} 15...
Bxg2 {[%clk 0:02:43.7]} 16. Kxg2 {[%clk 0:02:27.2]} 16... Qd7 {[%clk 0:02:40.3]}
17. b5 {[%clk 0:02:25.6]} 17... h5 {[%clk 0:02:38.2]} 18. Nb4 {[%clk 0:02:22.7]}
18... Rbc8 {[%clk 0:02:33.7]} 19. a4 {[%clk 0:02:22.1]} 19... e5 {[%clk
0:02:32.2]} 20. Ra1 {[%clk 0:02:21.2]} 20... h4 {[%clk 0:02:31.9]} 21. a5 {[%clk
0:02:19.2]} 21... h3+ {[%clk 0:02:32.3]} 22. Kg1 {[%clk 0:02:18.9]} 22... Kh7
{[%clk 0:02:29.1]} 23. axb6 {[%clk 0:02:16.2]} 23... axb6 {[%clk 0:02:29.4]} 24.
Ra6 {[%clk 0:02:16.4]} 24... Rb8 {[%clk 0:02:29.7]} 25. Rfa1 {[%clk 0:02:15.9]}
25... Rfc8 {[%clk 0:02:30.2]} 26. Ra7 {[%clk 0:02:15.4]} 26... Rb7 {[%clk
0:02:30.7]} 27. Qa4 {[%clk 0:02:11.2]} 27... Rcb8 {[%clk 0:02:24.5]} 28. f3
{[%clk 0:02:06.4]} 28... f5 {[%clk 0:02:14.9]} 29. Nc6 {[%clk 0:02:05.9]} 29...
Rc8 {[%clk 0:01:49.6]} 30. Nxe7 {[%clk 0:01:42.5]} 30... Qxe7 {[%clk 0:01:48.6]}
31. Rxb7 {[%clk 0:01:42.9]} 31... Qxb7 {[%clk 0:01:49.5]} 32. Qa7 {[%clk
0:01:42.9]} 32... Rc7 {[%clk 0:01:15]} 33. Qxb7 {[%clk 0:01:42.6]} 33... Rxb7
{[%clk 0:01:15.9]} 34. Ra8 {[%clk 0:01:42.3]} 34... Bf6 {[%clk 0:01:12.3]} 35.
Bb4 {[%clk 0:01:35.4]} 35... Be7 {[%clk 0:01:10.8]} 36. Kf2 {[%clk 0:01:35.5]}
36... Kg7 {[%clk 0:01:11]} 37. Rc8 {[%clk 0:01:21.6]} 37... Kf7 {[%clk
0:01:08.8]} 38. Rc6 {[%clk 0:01:21.1]} 38... Ke6 {[%clk 0:01:05.9]} 39. e3
{[%clk 0:00:56]} 39... Ra7 {[%clk 0:00:56.1]} 40. exd4 {[%clk 0:00:53.8]} 40...
exd4 {[%clk 0:00:57]} 41. Rxb6 {[%clk 0:00:52.5]} 41... Ra2+ {[%clk 0:00:57.4]}
42. Kg1 {[%clk 0:00:52.8]} 42... Rg2+ {[%clk 0:00:55.6]} 43. Kh1 {[%clk
0:00:50.8]} 43... Rb2 {[%clk 0:00:55.8]} 0-1

[Event "Late-Titled-Tuesday-Blitz-November-28-2023"]
[Site "Chess.com"]
[Date "2023.11.28"]
[Round "4"]
[White "DawnofEpiphany"]
[Black "2Killer2"]
[Result "1-0"]
[WhiteElo "2651"]
[BlackElo "2450"]
[TimeControl "180+1"]
[EndTime "14:36:10 PST"]
[Termination "DawnofEpiphany won by resignation"]

1. d4 {[%clk 0:02:54.9]} 1... e6 {[%clk 0:02:58.3]} 2. e4 {[%clk 0:02:50.4]}
2... d5 {[%clk 0:02:58.5]} 3. exd5 {[%clk 0:02:50.8]} 3... exd5 {[%clk
0:02:58.5]} 4. Nf3 {[%clk 0:02:51.5]} 4... Bd6 {[%clk 0:02:58.4]} 5. c4 {[%clk
0:02:49.7]} 5... dxc4 {[%clk 0:02:56.3]} 6. Bxc4 {[%clk 0:02:49.3]} 6... Nf6
{[%clk 0:02:56.7]} 7. O-O {[%clk 0:02:48.9]} 7... O-O {[%clk 0:02:56.8]} 8. Nc3
{[%clk 0:02:46.1]} 8... Bg4 {[%clk 0:02:56]} 9. h3 {[%clk 0:02:44.6]} 9... Bh5
{[%clk 0:02:55.7]} 10. Bg5 {[%clk 0:02:44.8]} 10... h6 {[%clk 0:02:43.4]} 11.
Bh4 {[%clk 0:02:44.9]} 11... Nbd7 {[%clk 0:02:34]} 12. Re1 {[%clk 0:02:43.4]}
12... c6 {[%clk 0:02:30.2]} 13. g4 {[%clk 0:02:41]} 13... Bg6 {[%clk 0:02:29.6]}
14. Ne5 {[%clk 0:02:40.9]} 14... Bh7 {[%clk 0:01:50]} 15. Qb3 {[%clk 0:02:37.6]}
15... Qb6 {[%clk 0:01:03.3]} 16. Bxf7+ {[%clk 0:02:35.9]} 16... Kh8 {[%clk
0:01:03.1]} 17. Bg3 {[%clk 0:02:15.9]} 17... Bxe5 {[%clk 0:00:50.4]} 18. dxe5
{[%clk 0:02:14.7]} 18... Ne8 {[%clk 0:00:37.5]} 19. e6 {[%clk 0:02:10]} 19...
Nc5 {[%clk 0:00:33.8]} 20. Qxb6 {[%clk 0:02:08.3]} 20... axb6 {[%clk 0:00:33.5]}
21. Re3 {[%clk 0:01:57.2]} 21... Bg8 {[%clk 0:00:33.2]} 22. Bxg8 {[%clk
0:01:51.3]} 22... Kxg8 {[%clk 0:00:34.1]} 23. f4 {[%clk 0:01:50.7]} 23... Nc7
{[%clk 0:00:31.8]} 24. f5 {[%clk 0:01:50.8]} 24... Nd5 {[%clk 0:00:32.1]} 25.
Nxd5 {[%clk 0:01:50.4]} 25... cxd5 {[%clk 0:00:33]} 26. Bd6 {[%clk 0:01:45.6]}
26... Rfd8 {[%clk 0:00:30.3]} 27. Bc7 {[%clk 0:01:44.8]} 27... Rdc8 {[%clk
0:00:26]} 28. Bxb6 {[%clk 0:01:44.9]} 28... Ne4 {[%clk 0:00:26]} 29. Bd4 {[%clk
0:01:26]} 29... Rc4 {[%clk 0:00:25.5]} 30. Rd1 {[%clk 0:01:15.7]} 30... Rxa2
{[%clk 0:00:24.5]} 31. Re2 {[%clk 0:01:15.9]} 31... Raa4 {[%clk 0:00:23.8]} 32.
Be5 {[%clk 0:01:13.2]} 32... Ra5 {[%clk 0:00:23.2]} 33. Kg2 {[%clk 0:01:11.7]}
33... Rac5 {[%clk 0:00:21.7]} 34. Kf3 {[%clk 0:01:06.7]} 34... Rc2 {[%clk
0:00:21.3]} 35. Rxc2 {[%clk 0:01:06.1]} 35... Rxc2 {[%clk 0:00:21.2]} 36. Rxd5
{[%clk 0:01:06.1]} 36... Ng5+ {[%clk 0:00:21.6]} 37. Ke3 {[%clk 0:01:05.8]}
37... Rxb2 {[%clk 0:00:19.5]} 38. Bxb2 {[%clk 0:01:05.3]} 1-0

[Event "Late-Titled-Tuesday-Blitz-November-28-2023"]
[Site "Chess.com"]
[Date "2023.11.28"]
[Round "4"]
[White "tantaan"]
[Black "OPQRC"]
[Result "1-0"]
[WhiteElo "2366"]
[BlackElo "2533"]
[TimeControl "180+1"]
[EndTime "14:36:11 PST"]
[Termination "tantaan won on time"]

1. e4 {[%clk 0:02:41.6]} 1... c5 {[%clk 0:01:39.3]} 2. Nf3 {[%clk 0:02:41.5]}
2... Nc6 {[%clk 0:01:37.5]} 3. Bb5 {[%clk 0:02:41.4]} 3... g6 {[%clk 0:01:36.6]}
4. O-O {[%clk 0:02:41.7]} 4... Bg7 {[%clk 0:01:36.5]} 5. Re1 {[%clk 0:02:41.5]}
5... e5 {[%clk 0:01:35.6]} 6. c3 {[%clk 0:02:38.1]} 6... Nge7 {[%clk 0:01:34.8]}
7. d4 {[%clk 0:02:38.1]} 7... cxd4 {[%clk 0:01:34.6]} 8. cxd4 {[%clk 0:02:39]}
8... Nxd4 {[%clk 0:01:33.7]} 9. Nxd4 {[%clk 0:02:38.4]} 9... exd4 {[%clk
0:01:34.6]} 10. Nd2 {[%clk 0:02:35.8]} 10... O-O {[%clk 0:01:34]} 11. Nb3 {[%clk
0:02:35.4]} 11... d5 {[%clk 0:01:33.8]} 12. e5 {[%clk 0:02:32.9]} 12... a6
{[%clk 0:01:28.7]} 13. Bf1 {[%clk 0:02:29.8]} 13... Nc6 {[%clk 0:01:22.9]} 14.
Bf4 {[%clk 0:02:27.2]} 14... Qb6 {[%clk 0:01:17.3]} 15. Bg3 {[%clk 0:02:19.2]}
15... Bf5 {[%clk 0:01:11.5]} 16. h4 {[%clk 0:02:16.7]} 16... Rac8 {[%clk
0:01:10.6]} 17. h5 {[%clk 0:02:11]} 17... Rfe8 {[%clk 0:01:10.5]} 18. f4 {[%clk
0:02:09.1]} 18... a5 {[%clk 0:00:45]} 19. Bf2 {[%clk 0:02:08.3]} 19... a4 {[%clk
0:00:38.7]} 20. Nxd4 {[%clk 0:02:08.1]} 20... Qxb2 {[%clk 0:00:37.8]} 21. Nxf5
{[%clk 0:02:08.4]} 21... gxf5 {[%clk 0:00:37.7]} 22. h6 {[%clk 0:02:05.9]} 22...
Bxh6 {[%clk 0:00:36.5]} 23. Rb1 {[%clk 0:02:03.5]} 23... Qxa2 {[%clk 0:00:36.1]}
24. Rxb7 {[%clk 0:01:59.1]} 24... d4 {[%clk 0:00:33]} 25. Qh5 {[%clk 0:01:53.4]}
25... Bg7 {[%clk 0:00:32.7]} 26. Bd3 {[%clk 0:01:43.4]} 26... Ne7 {[%clk
0:00:26.5]} 27. Bh4 {[%clk 0:01:30]} 27... Ng6 {[%clk 0:00:26.1]} 28. Bxf5
{[%clk 0:01:27]} 28... Rb8 {[%clk 0:00:20.8]} 29. Rxb8 {[%clk 0:01:24.2]} 29...
Rxb8 {[%clk 0:00:21.7]} 30. e6 {[%clk 0:01:24.3]} 30... Qxg2+ {[%clk 0:00:17.5]}
31. Kxg2 {[%clk 0:01:21.5]} 31... Nxf4+ {[%clk 0:00:18.4]} 32. Kf3 {[%clk
0:01:22]} 32... Nxh5 {[%clk 0:00:19.3]} 33. e7 {[%clk 0:01:22.4]} 33... Rb3+
{[%clk 0:00:06.1]} 34. Kg4 {[%clk 0:01:16.1]} 1-0

[Event "Late-Titled-Tuesday-Blitz-November-28-2023"]
[Site "Chess.com"]
[Date "2023.11.28"]
[Round "4"]
[White "SpeedofLight0"]
[Black "larsmandreassen"]
[Result "1-0"]
[WhiteElo "2877"]
[BlackElo "2258"]
[TimeControl "180+1"]
[EndTime "14:36:19 PST"]
[Termination "SpeedofLight0 won on time"]

1. d4 {[%clk 0:02:58.7]} 1... d5 {[%clk 0:02:59.1]} 2. c4 {[%clk 0:02:57.7]}
2... e6 {[%clk 0:02:58.7]} 3. Nc3 {[%clk 0:02:57.8]} 3... c5 {[%clk 0:02:58.2]}
4. cxd5 {[%clk 0:02:57.8]} 4... cxd4 {[%clk 0:02:58.5]} 5. Qa4+ {[%clk
0:02:57.9]} 5... Bd7 {[%clk 0:02:53.9]} 6. Qxd4 {[%clk 0:02:58.3]} 6... exd5
{[%clk 0:02:54.3]} 7. Qxd5 {[%clk 0:02:59.1]} 7... Nc6 {[%clk 0:02:54.4]} 8. Qd1
{[%clk 0:02:59.9]} 8... Nf6 {[%clk 0:02:54.4]} 9. Nf3 {[%clk 0:03:00.4]} 9...
Bc5 {[%clk 0:02:54.2]} 10. e3 {[%clk 0:02:58.6]} 10... Qe7 {[%clk 0:02:54.1]}
11. Be2 {[%clk 0:02:58.3]} 11... g5 {[%clk 0:02:50.2]} 12. O-O {[%clk
0:02:41.6]} 12... g4 {[%clk 0:02:49.3]} 13. Nd4 {[%clk 0:02:41.8]} 13... h5
{[%clk 0:02:48.2]} 14. Na4 {[%clk 0:02:37.7]} 14... Bd6 {[%clk 0:02:45.2]} 15.
Nb5 {[%clk 0:02:36]} 15... Bb8 {[%clk 0:02:35.9]} 16. b3 {[%clk 0:02:33.4]}
16... Qe5 {[%clk 0:02:24.7]} 17. g3 {[%clk 0:02:32.4]} 17... Qxa1 {[%clk
0:02:24.1]} 18. Qd2 {[%clk 0:02:30.9]} 18... Qe5 {[%clk 0:02:19.1]} 19. Bb2
{[%clk 0:02:28.8]} 19... Qe7 {[%clk 0:02:19.1]} 20. Ba3 {[%clk 0:02:27.9]} 20...
Qe5 {[%clk 0:02:10.2]} 21. Rd1 {[%clk 0:02:18.4]} 21... a6 {[%clk 0:01:41]} 22.
Bb2 {[%clk 0:02:11.6]} 22... Qf5 {[%clk 0:01:27.1]} 23. Bxf6 {[%clk 0:02:00.2]}
23... axb5 {[%clk 0:01:26.2]} 24. Nb6 {[%clk 0:01:57.2]} 24... Qxf6 {[%clk
0:00:54.1]} 25. Qxd7+ {[%clk 0:01:55.4]} 25... Kf8 {[%clk 0:00:54.6]} 26. Nxa8
{[%clk 0:01:43.9]} 26... Kg7 {[%clk 0:00:39.2]} 27. Nc7 {[%clk 0:01:27.7]} 27...
Ne5 {[%clk 0:00:24.7]} 28. Ne8+ {[%clk 0:01:23.7]} 28... Rxe8 {[%clk 0:00:22.7]}
29. Qxe8 {[%clk 0:01:24.6]} 29... Ba7 {[%clk 0:00:19.9]} 30. Rd8 {[%clk
0:01:19.6]} 30... Ng6 {[%clk 0:00:13.1]} 31. Bd3 {[%clk 0:01:15.5]} 31... h4
{[%clk 0:00:02.2]} 32. gxh4 {[%clk 0:00:55.8]} 1-0

[Event "Late-Titled-Tuesday-Blitz-November-28-2023"]
[Site "Chess.com"]
[Date "2023.11.28"]
[Round "4"]
[White "vladgoncharov"]
[Black "PoXerStar"]
[Result "1-0"]
[WhiteElo "2628"]
[BlackElo "2399"]
[TimeControl "180+1"]
[EndTime "14:36:21 PST"]
[Termination "vladgoncharov won by checkmate"]

1. d4 {[%clk 0:03:00.9]} 1... Nf6 {[%clk 0:02:59.5]} 2. c4 {[%clk 0:03:00.3]}
2... c5 {[%clk 0:02:59.1]} 3. Nf3 {[%clk 0:02:58.4]} 3... cxd4 {[%clk
0:02:56.7]} 4. Nxd4 {[%clk 0:02:58.5]} 4... g6 {[%clk 0:02:57.4]} 5. Nc3 {[%clk
0:02:57.8]} 5... Bg7 {[%clk 0:02:57.3]} 6. e4 {[%clk 0:02:58.1]} 6... O-O {[%clk
0:02:57.9]} 7. Be2 {[%clk 0:02:58.1]} 7... Nc6 {[%clk 0:02:58.2]} 8. Be3 {[%clk
0:02:57.7]} 8... d6 {[%clk 0:02:57.3]} 9. O-O {[%clk 0:02:57.4]} 9... Nxd4
{[%clk 0:02:57.4]} 10. Bxd4 {[%clk 0:02:57.3]} 10... Bd7 {[%clk 0:02:48.2]} 11.
Be3 {[%clk 0:02:50.9]} 11... a5 {[%clk 0:02:45.4]} 12. Qd2 {[%clk 0:02:49.1]}
12... Bc6 {[%clk 0:02:45]} 13. f3 {[%clk 0:02:48.7]} 13... Nd7 {[%clk
0:02:42.1]} 14. b3 {[%clk 0:02:40.9]} 14... Nc5 {[%clk 0:01:56.1]} 15. Rab1
{[%clk 0:02:38.7]} 15... f5 {[%clk 0:01:47.7]} 16. exf5 {[%clk 0:02:33.1]} 16...
gxf5 {[%clk 0:01:48.6]} 17. Nd5 {[%clk 0:02:31.3]} 17... Bxd5 {[%clk 0:01:24]}
18. Qxd5+ {[%clk 0:02:23.4]} 18... e6 {[%clk 0:01:23.9]} 19. Qd2 {[%clk
0:02:22]} 19... Qc7 {[%clk 0:01:19.8]} 20. Rfd1 {[%clk 0:02:20.5]} 20... Rad8
{[%clk 0:01:18.4]} 21. Bf1 {[%clk 0:02:20.4]} 21... Kh8 {[%clk 0:01:07.5]} 22.
Qf2 {[%clk 0:02:18.6]} 22... f4 {[%clk 0:01:02.4]} 23. Bd4 {[%clk 0:02:17.8]}
23... Bxd4 {[%clk 0:01:00.7]} 24. Rxd4 {[%clk 0:02:15]} 24... e5 {[%clk
0:01:01.1]} 25. Rd5 {[%clk 0:02:15.2]} 25... Ne6 {[%clk 0:00:59.5]} 26. Bd3
{[%clk 0:02:08.3]} 26... Nd4 {[%clk 0:00:57.4]} 27. Be4 {[%clk 0:02:08.1]} 27...
b6 {[%clk 0:00:53.7]} 28. Rd1 {[%clk 0:02:06.2]} 28... Qg7 {[%clk 0:00:50.4]}
29. R1xd4 {[%clk 0:01:56.7]} 29... exd4 {[%clk 0:00:50.4]} 30. Qxd4 {[%clk
0:01:56.7]} 30... Qxd4+ {[%clk 0:00:46.1]} 31. Rxd4 {[%clk 0:01:57.6]} 31...
Rfe8 {[%clk 0:00:30.1]} 32. Kf2 {[%clk 0:01:54.5]} 32... Re5 {[%clk 0:00:26.1]}
33. Bc6 {[%clk 0:01:54]} 33... Rf5 {[%clk 0:00:20.3]} 34. g4 {[%clk 0:01:49.4]}
34... fxg3+ {[%clk 0:00:20]} 35. hxg3 {[%clk 0:01:49.4]} 35... Kg7 {[%clk
0:00:19.7]} 36. g4 {[%clk 0:01:48.9]} 36... Rc5 {[%clk 0:00:18.7]} 37. Bd5
{[%clk 0:01:48.1]} 37... b5 {[%clk 0:00:16.3]} 38. Re4 {[%clk 0:01:45.4]} 38...
bxc4 {[%clk 0:00:14.8]} 39. bxc4 {[%clk 0:01:45.4]} 39... Rd7 {[%clk 0:00:14]}
40. f4 {[%clk 0:01:41.8]} 40... h6 {[%clk 0:00:11.9]} 41. Kg3 {[%clk 0:01:41.4]}
41... a4 {[%clk 0:00:10.2]} 42. Re8 {[%clk 0:01:37.3]} 42... Ra7 {[%clk
0:00:07.3]} 43. Rd8 {[%clk 0:01:35.3]} 43... Ra6 {[%clk 0:00:06.7]} 44. Rd7+
{[%clk 0:01:34.6]} 44... Kf6 {[%clk 0:00:06.5]} 45. Kh4 {[%clk 0:01:32.2]} 45...
h5 {[%clk 0:00:02.2]} 46. Kxh5 {[%clk 0:01:31.9]} 46... a3 {[%clk 0:00:01.4]}
47. Rf7# {[%clk 0:01:31.1]} 1-0

[Event "Late-Titled-Tuesday-Blitz-November-28-2023"]
[Site "Chess.com"]
[Date "2023.11.28"]
[Round "4"]
[White "KorolDimitriy75"]
[Black "Blackwhite017"]
[Result "0-1"]
[WhiteElo "2291"]
[BlackElo "2059"]
[TimeControl "180+1"]
[EndTime "14:36:26 PST"]
[Termination "Blackwhite017 won on time"]

1. d4 {[%clk 0:03:00.9]} 1... f5 {[%clk 0:02:59.3]} 2. c4 {[%clk 0:03:00.7]}
2... e6 {[%clk 0:02:59.7]} 3. Nf3 {[%clk 0:03:01.4]} 3... Nf6 {[%clk 0:02:59.4]}
4. g3 {[%clk 0:03:00]} 4... b6 {[%clk 0:02:59.3]} 5. Bg2 {[%clk 0:03:00.1]} 5...
Bb7 {[%clk 0:02:59.8]} 6. O-O {[%clk 0:03:00.2]} 6... Be7 {[%clk 0:02:59.9]} 7.
Nc3 {[%clk 0:02:58.6]} 7... O-O {[%clk 0:02:59.4]} 8. Qc2 {[%clk 0:02:57.1]}
8... Ne4 {[%clk 0:02:47.5]} 9. Rd1 {[%clk 0:01:59.9]} 9... Nxc3 {[%clk
0:02:35.1]} 10. Qxc3 {[%clk 0:01:59.4]} 10... d6 {[%clk 0:02:09.7]} 11. b3
{[%clk 0:01:52.9]} 11... Bf6 {[%clk 0:02:08.9]} 12. Bb2 {[%clk 0:01:51.5]} 12...
Qe7 {[%clk 0:01:56.4]} 13. Qd2 {[%clk 0:01:20.3]} 13... Nd7 {[%clk 0:01:52.4]}
14. Rac1 {[%clk 0:01:08.7]} 14... a5 {[%clk 0:01:36.1]} 15. Bc3 {[%clk
0:01:00.8]} 15... Rfd8 {[%clk 0:01:14.7]} 16. Ne1 {[%clk 0:00:26.7]} 16... Bxg2
{[%clk 0:01:12.6]} 17. Nxg2 {[%clk 0:00:27.6]} 17... e5 {[%clk 0:01:03.3]} 18.
Ne3 {[%clk 0:00:24.4]} 18... exd4 {[%clk 0:00:56.2]} 19. Nxf5 {[%clk 0:00:20.1]}
19... Qe6 {[%clk 0:00:43.8]} 20. Nxd4 {[%clk 0:00:20.5]} 20... Qh3 {[%clk
0:00:44.1]} 21. Nc6 {[%clk 0:00:15.6]} 21... Rf8 {[%clk 0:00:39.8]} 22. Bxf6
{[%clk 0:00:08.8]} 22... Rxf6 {[%clk 0:00:40.7]} 23. Qd5+ {[%clk 0:00:04.5]}
23... Kh8 {[%clk 0:00:39.4]} 24. Qg2 {[%clk 0:00:03.6]} 24... Qe6 {[%clk
0:00:37.7]} 0-1